Cogmind - Beta 15 @@@ ROGUE MODE // 2025.05.25 @ 23:02:29 Player: Duduxx Result: Destroyed by 5Q-30Q(j) with Overtuned Pulse Rifle Performance ------------- Evolutions (0) 0 Regions Visited (3) 600 Robots Destroyed (1) 5 Value Destroyed (40) 40 Prototype IDs (0) 0 Alien Tech Used (0) 0 Bonus (800) 800 TOTAL SCORE: 1445 Bonus ------- Registered with UFD 300 Met Optimus in HQ 500 Cogmind --------- Core Integrity 0/250 Matter 300/300 Energy 100/100 System Corruption 0% Temperature Cool (12) Movement Flying (35) Location -8/Scraptown Parts ------- > --- POWER (1) -------- (None) > --- PROPULSION (2) --- Cesium-ion Thruster > --- UTILITY (2) ------ Small Storage Unit > --- WEAPON (2) ------- (None) > --- INVENTORY (8) ---- Ion Engine Scrap Suit Improved Heat Sink Disposable Heat Sink Improved Signal Interpreter Peak State ------------ > --- POWER ------------ Ion Engine > --- PROPULSION ------- Light Treads Light Treads > --- UTILITY ---------- Disposable Heat Sink Small Storage Unit > --- WEAPON ----------- Field Laser Katana > --- INVENTORY -------- Ion Engine Cesium-ion Thruster Scrap Suit Improved Heat Sink Improved Signal Interpreter [Rating: 13] Favorites ----------- Power Ion Engine Engine Ion Engine Propulsion Light Treads Treads Light Treads Flight Unit Cesium-ion Thruster Utility Small Storage Unit Device Disposable Heat Sink Storage Small Storage Unit Weapon Katana Energy Gun Medium Laser Slashing Weapon Katana Build | -11 -10 -10 -8 ------- Run | Yrd Mat Sub Scr Slots Evolved . | . . . . Power . | . . . . Propulsion . | . . . . Utility . | . . . . Weapon . | . . . . Parts Attached 11 | 6 . 2 3 Power 1 | 1 . . . Engine 1 | 1 . . . Core . | . . . . Reactor . | . . . . Propulsion 3 | 2 . . 1 Treads 2 | 2 . . . Leg . | . . . . Wheel . | . . . . Hover . | . . . . Flight 1 | . . . 1 Utility 2 | 1 . 1 . Device 1 | . . 1 . Storage 1 | 1 . . . Processor . | . . . . Hackware . | . . . . Protection . | . . . . Artifact . | . . . . Weapon 5 | 2 . 1 2 Energy Gun 4 | 2 . 1 1 Energy Cannon . | . . . . Ballistic Gun . | . . . . Ballistic Cannon . | . . . . Launcher . | . . . . Special Weapon . | . . . . Impact Weapon . | . . . . Slashing Weapon 1 | . . . 1 Piercing Weapon . | . . . . Special Melee Weapon . | . . . . Unidentified Prototypes . | . . . . Parts Lost 6 | . . 1 5 Power 1 | . . . 1 Propulsion 2 | . . . 2 Utility . | . . . . Weapon 3 | . . 1 2 Highest Loss Streak 5 | . . 1 5 To Critical Strikes . | . . . . Average Backups 4 | . 1 1 5 Power . | . 1 1 1 Propulsion . | . . . . Utility 1 | . . . 2 Weapon 1 | . . . 1 Tool/Special . | . . . . Unused Backups 4 | . . . 4 Power 1 | . . . 1 Propulsion . | . . . . Utility 3 | . . . 3 Weapon . | . . . . Tool/Special . | . . . . Average Slot Usage (%) 81 | . 85 91 79 Engine 13 | . 14 14 13 Treads 27 | . 28 28 27 Device 12 | . . 7 14 Storage 14 | . 14 14 14 Energy Gun 5 | . 28 26 1 Slashing Weapon 6 | . . . 8 Peak Build Rating 13 | 6 6 9 13 Average Rating 8 | 4 6 7 8 On Entrance 5 | . 6 6 9 Naked Turns . | . . . . Heaviest Build 17 | 14 14 17 17 Greatest Support 40 | 40 40 40 40 Greatest Overweight (x) . | . . . . Average Overweight (x) . | . . . . Largest Inventory Capacity 8 | 8 8 8 8 Average Capacity 7 | 7 8 8 8 Most Carried 8 | 1 1 3 8 Average Carried 5 | . 1 1 5 Final Capacity 8 | 8 8 8 8 Final Carried 6 | 1 1 2 6 Class Distribution -------------------- 100% | Mutant Dominant Class ---------------- Mutant | -10/Materials Mutant | -10/Subcaves Mutant | -8/Scraptown Resources | -11 -10 -10 -8 ----------- Run | Yrd Mat Sub Scr Matter Collected 299 | 218 . 51 30 Remotely . | . . . . Salvage Created 56 | . . 56 . Parts 3 | . . 3 . Haulers Intercepted . | . . . . Recyclers Shooed . | . . . . Parts Field Recycled . | . . . . Retrieved Matter . | . . . . Parts Self-Destructed 15 | . . 15 . Prevented . | . . . . Kills | -11 -10 -10 -8 ------- Run | Yrd Mat Sub Scr Combat Hostiles Destroyed 1 | . . 1 . Guns 1 | . . 1 . Classes Destroyed 1 | . . 1 . Subdweller 1 | . . 1 . Best Kill Streak 1 | . . 1 . Combat Bots Only 1 | . . 1 . Max Kills in Single Turn 1 | . . 1 . Gunslinging . | . . . . Exploded . | . . . . Melee . | . . . . Uniques/NPCs Destroyed . | . . . . Combat | -11 -10 -10 -8 -------- Run | Yrd Mat Sub Scr Hostile Shots Fired 100 | . . 19 81 Missed 34 | . . 8 26 Hits 66 | . . 11 55 Projectile 66 | . . 11 55 Critical Strikes 2 | . . . 2 Damage Taken 930 | . . 209 721 Core 253 | . . 41 212 Absorbed by Shields . | . . . . Regen/Repaired (Parts) 110 | . . . 110 Core Remaining (%) 100 | 100 . . . Volleys Fired 11 | . . 11 . Largest 2 | . . 2 . Hottest 110 | . . 110 . Shots Fired 18 | . . 18 . Gun 18 | . . 18 . Cannon . | . . . . Launcher . | . . . . Special . | . . . . Kinetic . | . . . . Thermal 13 | . . 13 . Explosive . | . . . . Electromagnetic 5 | . . 5 . Robot Hit Streak 5 | . . 5 . Robot Miss Streak 5 | . . 5 . Penetration Max . | . . . . Secondary Targets . | . . . . Shots Hit Robots 8 | . . 8 . Core Hits 2 | . 1 1 . Critical Kills . | . . . . Critical Parts Destroyed . | . . . . Critical Strikes . | . . . . Melee Attacks . | . . . . Impact . | . . . . Slashing . | . . . . Piercing . | . . . . Sneak Attacks . | . . . . Combat Hostiles . | . . . . Follow-up Attacks . | . . . . Damage Inflicted 85 | . 6 79 . Guns 79 | . . 79 . Cannons . | . . . . Explosions . | . . . . Melee . | . . . . Ramming 6 | . 6 . . Kinetic . | . . . . Thermal 69 | . . 69 . Explosive . | . . . . Electromagnetic 10 | . . 10 . Impact . | . . . . Slashing . | . . . . Piercing . | . . . . Highest Corruption . | . . . . Average Corruption . | . . . . Corruption Purged . | . . . . Corruption Blocked . | . . . . Overload Shots . | . . . . Overflow Damage . | . . . . Projectiles . | . . . . Explosions . | . . . . Melee . | . . . . Knockbacks . | . . . . Impact . | . . . . Kinetic . | . . . . Secondary . | . . . . Self-Inflicted Damage . | . . . . Shots . | . . . . Rammed 2 | . 2 . . Targets Rammed 2 | . 2 . . Kicked . | . . . . Crushed . | . . . . Highest Temperature 25 | . . 2 25 Average Temperature 12 | . . 2 16 Received Heat Transfer 449 | . . 51 398 Siege Activations . | . . . . Martial Activations . | . . . . Shielding Activations . | . . . . Robots Disrupted . | . . . . Combat Hostiles . | . . . . Robots Corrupted . | . . . . Combat Hostiles . | . . . . Parts Fried . | . . . . Impact Corruptions . | . . . . Robots Melted . | . . . . Combat Hostiles . | . . . . Parts Melted . | . . . . Heat Transferred 173 | . . 173 . Parts Sabotaged . | . . . . Parts Stolen . | . . . . Parts Stripped . | . . . . Power Chain Reactions . | . . . . Alert | -11 -10 -10 -8 ------- Run | Yrd Mat Sub Scr Maximum Alert Level . | . . . . Low Security (%) 100 | 100 100 . . Level 1 . | . . . . Level 2 . | . . . . Level 3 . | . . . . Level 4 . | . . . . Level 5 . | . . . . High Security . | . . . . Max Security . | . . . . Peak Influence . | . . . . Initial . | . . . . Average . | . . . . Influence Increases . | . . . . Influence Decreases . | . . . . Squads Dispatched . | . . . . Investigation . | . . . . Extermination . | . . . . Reinforcement . | . . . . Assault . | . . . . Garrison . | . . . . Intercept . | . . . . Searches Triggered . | . . . . Construction Impeded . | . . . . Haulers Reinforced . | . . . . Active Scanning Responses . | . . . . Cargo Convoy Interrupts . | . . . . Stealth | -11 -10 -10 -8 --------- Run | Yrd Mat Sub Scr Distress Signals . | . . . . Communications Jammed . | . . . . Distress Signals . | . . . . Times Spotted 22 | . . 6 16 Peak Tracking Total 13 | . . 3 13 Tactical Retreats . | . . . . Traps | -11 -10 -10 -8 ------- Run | Yrd Mat Sub Scr Traps Triggered . | . . . . Indirectly . | . . . . Trap Hack Attempts . | . . . . Triggered . | . . . . Disarmed . | . . . . Reprogrammed . | . . . . Reused . | . . . . Traps Extracted . | . . . . Installed . | . . . . Triggered . | . . . . Machines | -11 -10 -10 -8 ---------- Run | Yrd Mat Sub Scr Machines Disabled . | . . . . Max in Single Turn . | . . . . Machines Repaired . | . . . . Machines Dismantled . | . . . . Machines Sabotaged . | . . . . Overloaded Fab Kills . | . . . . Hacking | -11 -10 -10 -8 --------- Run | Yrd Mat Sub Scr Machines Accessed 5 | . . . 5 Terminals . | . . . . Fabricators . | . . . . Repair Stations . | . . . . Recycling Units . | . . . . Scanalyzers . | . . . . Garrison Access . | . . . . Total Hacks 14 | . . . 14 Successful 14 | . . . 14 Failed . | . . . . Catastrophic . | . . . . Database Lockouts . | . . . . Manual 3 | . . . 3 Terminals . | . . . . Fabricators . | . . . . Repair Stations . | . . . . Recycling Units . | . . . . Scanalyzers . | . . . . Garrison Access . | . . . . Terminal Hacks 14 | . . . 14 Record 14 | . . . 14 Fabricator Hacks . | . . . . Repair Station Hacks . | . . . . Recycling Unit Hacks . | . . . . Scanalyzer . | . . . . Garrison Access Hacks . | . . . . Unauthorized Hacks . | . . . . Terminals . | . . . . Fabricators . | . . . . Repair Stations . | . . . . Recycling Units . | . . . . Scanalyzers . | . . . . Garrison Access . | . . . . Data Cores Recovered . | . . . . Used . | . . . . Hacking Detections . | . . . . Full Trace Events . | . . . . Feedback Events . | . . . . Feedback Blocked . | . . . . Robot Schematics Acquired . | . . . . Robots Built . | . . . . Authchips . | . . . . Time . | . . . . Total Robot Build Rating . | . . . . Part Schematics Acquired . | . . . . Parts Built . | . . . . Authchips . | . . . . Time . | . . . . Total Part Build Rating . | . . . . Parts Repaired . | . . . . Time . | . . . . Parts Recycled . | . . . . Recycled Matter . | . . . . Retrieved Matter . | . . . . Retrieved Components . | . . . . Parts Scanalyzed . | . . . . Part Schematics Acquired . | . . . . Parts Damaged . | . . . . Bothacking | -11 -10 -10 -8 ------------ Run | Yrd Mat Sub Scr Used RIF Installer . | . . . . Robots Hacked . | . . . . Non-combat . | . . . . Combat . | . . . . Robot Hacks Applied . | . . . . Relay Couplers Released . | . . . . Fabnet Peak Effective % . | . . . . Robots Rewired . | . . . . Allies Hacked . | . . . . Hacks Repelled . | . . . . Allies | -11 -10 -10 -8 -------- Run | Yrd Mat Sub Scr Total Allies . | . . . . Largest Group . | . . . . Highest-Rated Group . | . . . . Highest-Rated Ally . | . . . . Total Orders . | . . . . Ally Attacks . | . . . . Total Damage . | . . . . Kills . | . . . . Allies Corrupted . | . . . . Allies Melted 3 | . . . 3 Intel | -11 -10 -10 -8 ------- Run | Yrd Mat Sub Scr Active Infowar (turns) . | . . . . Robot Analysis Total . | . . . . Derelict Logs Recovered . | . . . . Drone Launches . | . . . . Drone Recoveries . | . . . . Exploration | -11 -10 -10 -8 ------------- Run | Yrd Mat Sub Scr Turns Passed 1504 | 53 12 224 1215 Spaces Moved 916 | 29 6 119 762 Core 2 | 2 . . . Treads 902 | 27 6 119 750 Legs . | . . . . Wheels . | . . . . Hover . | . . . . Flight 12 | . . . 12 Fastest Speed 35 | 50 160 160 35 Average Speed 158 | 152 160 160 158 Slowest Speed 160 | 160 160 160 160 Overloaded Moves . | . . . . Propulsion Burnouts . | . . . . Robots Hopped . | . . . . Potential Cave-ins . | . . . . Cave-ins Triggered . | . . . . Exploration Rate (%) 17 | 3 3 11 54 Regions Visited 3 Branch Regions 2 Pre-discovered Areas . | . . . . Known Exits Taken . | . . . . Unknown Exits Taken 3 | 1 1 1 . Scrap Searched 3 | . . . 3 Spaces Dug . | . . . . Terrain Destroyed . | . . . . Melee . | . . . . Projectile . | . . . . AOE . | . . . . Terrain Rammed . | . . . . Walls Destroyed . | . . . . Machines Disabled . | . . . . Actions | -11 -10 -10 -8 --------- Run | Yrd Mat Sub Scr Total 950 | 35 7 134 774 Wait . | . . . . Move 913 | 28 5 118 762 Hop . | . . . . Pick Up 7 | 1 . 2 4 Fast Attach 9 | 6 . 2 1 Attach 2 | . . . 2 Detach 3 | . . . 3 Swap . | . . . . Drop 3 | . . 1 2 Fire 11 | . . 11 . Melee . | . . . . Ram . | . . . . Kick . | . . . . Crush 2 | . 2 . . Escape Stasis . | . . . . Rewire . | . . . . Trap . | . . . . Miscellaneous . | . . . . Route ------- -11/Scrapyard -10/Materials -10/Subcaves (discovered 2 exits: [*Mat] / *Scr) -8/Scraptown (discovered 2 exits: *Fac x2) History --------- Turn | Location | Event 27 | -11/Scrapyard | Discovered new exit (range 16) 54 | -11/Scrapyard | Entered Materials 54 | -10/Materials | Discovered new exit (range 8) 55 | -10/Materials | Met a group of wandering Federalists 66 | -10/Materials | Entered Subcaves 66 | -10/Subcaves | Accompanied by 5 allies 67 | -10/Subcaves | Continued accompanying wandering Federalists (5) 67 | -10/Subcaves | Approached by a straggling Scientist 79 | -10/Subcaves | Discovered new exit (range 8) 285 | -10/Subcaves | Wandering Federalist uncovered a shortcut to Scraptown 290 | -10/Subcaves | Entered Scraptown 314 | -8/Scraptown | Build established: Mutant 551 | -8/Scraptown | Visited Red Mages 597 | -8/Scraptown | Visited CR-KLE's Repair Center 609 | -8/Scraptown | CR-KLE repaired 5 parts 713 | -8/Scraptown | Discovered new exit (range 5) 882 | -8/Scraptown | Visited Assassins FH 927 | -8/Scraptown | Visited TADAMA 970 | -8/Scraptown | Visited UFD Registry 976 | -8/Scraptown | Registered with UFD as "Thermocell" 1031 | -8/Scraptown | Received an X-ray algorithm 1127 | -8/Scraptown | Met Optimus 1127 | -8/Scraptown | Accepted into 0bPrime 1136 | -8/Scraptown | Ran an X-ray algorithm 1151 | -8/Scraptown | Ran an X-ray algorithm 1168 | -8/Scraptown | Ran an X-ray algorithm 1295 | -8/Scraptown | Visited Scrap Suit Storage 1303 | -8/Scraptown | Found Scrap Suit 1344 | -8/Scraptown | Visited Scrapoid Pod Storage 1374 | -8/Scraptown | Visited Derelict Rescue Squad 1382 | -8/Scraptown | Civil war broke out across Scraptown 1436 | -8/Scraptown | Lost 4 allies 1456 | -8/Scraptown | Identified exit to Factory 1462 | -8/Scraptown | Core integrity fell below 50% 1480 | -8/Scraptown | Visited DA-N13 Charitable Foundation 1491 | -8/Scraptown | Optimus destroyed in the chaos of civil war 1503 | -8/Scraptown | Core integrity fell below 20% 1505 | -8/Scraptown | Destroyed by 5Q-30Q(j) with Overtuned Pulse Rifle Last Messages --------------- 01491_ Slug penetrates TQ-D7V(j). 01491_ Optimus: "We are 0bPrime!" 01491_ ANNOUNCEMENT: The traitor Optimus has been dealt with. Put down any remaining collaborators. 01491_ Optimus destroyed. 01496_ Penetrated by Bolt. 01496_ 3V-H6S(j) overheating. 01497_ Field Laser destroyed. 01497_ Lgt. Treads destroyed. 01497_ Critical hit (Burn: +50). 01499_ GW-C4Z(j) cannibalizes Imp. VSS Leg to repair Ovr. Titanium Leg. 01499_ 3V-H6S(j) overheating. 01501_ 3V-H6S(j) heat damages Ovr. Titanium Leg, Ovr. Titanium Leg, Lgt. Deuterium Engine. 01501_ Bolt penetrates Machine. 01504_ Acquired 10 matter. 01505_ TQ-D7V(j) cannibalizes Aluminum Leg to repair Ovr. Titanium Leg. Map ----- +----------------------------------------------------+ | "#?# """"" #??????????????X?????# ?# #???? | | """### """"" #?????????????# ?????# ## #???? | | "## """" #?????????????# ?????# $ $ #???? | | "## #???????????### ?????# #???? | | "## #???????????? ?????# *%= #???? | | ## #????????????? ?????# % #???? | | ## #?????????????# #????###!##=###???? | | # ########### ####???????##### ###########%####%## | | #????####" "" """"""""""!["[!!!!! | | #????? " *%=%=!%!=% | | #???????#" %!=!=![![[= | | #??????## !!%[%=!*= [! | | #??????#" *=[ [!!!=!*[===* | | ######## #???#####" !%! = !!! | | ???????# #???#""" """"""""" | | ???????# #???#" " " """"""""""" | | ???????# #???#" " ""###### ######## | | ???????# #???#"" ""# [ ##? | | ???????# #???#""" ""# ! X"#? | | ???????# ###?#"""" ""# "" "" ##? | | ???????# ""#"#"""" ""# "" "" X"#? | | ???????# """"#"""" ""# " " ### | | ???????# ""#######"!= "" "" | | ???????# ###?????#"%[ " = "" | | ???????# ######### ! ""# "%=! " ### | | ???????# j @%j ""# "" "" ""#? | | ???????# * ""# "" "" ##? | | ???????# = ""# X"#? | | ???????# !%* p ""# ##? | | ### #??# TT ""###### ######?? | | TT j """"""""""""?????? | | jg """"""""""""""???? | | =! ??? | | !%! ?? | | ![ =*= ?? | | ! #""""#" =![=%! ? | | #????#" !%[%[[ ? | | #????# """"= """""""""" """?? | | ########## ### ####????####### ########### #???? | | ????????? ??# #?????????????? ?????????? ????? | | ???????? ???# #?????????????? ??????????????? | | ???????###???# #??????????????? "?????????????? | | ?????????????# ???????????????? ??????????????? | | ?????????????# ????????????????????????????????? | | ?????????????? ????????????????????????????????? | | ?????????????????????????????????????????????????? | | ?????????????????????????????????????????????????? | | ?????????????????????????????????????????????????? | | ?????????????????????????????????????????????????? | | ?????????????????????????????????????????????????? | +----------------------------------------------------+ Best States ------------- Heat Dissipation 25 Coolant Potential 50 Energy Generation 10 Energy Capacity 250 Matter Stores 300 Matter Capacity 300 Sight Range 16 Terrain Scan Density 10 Evasion (%) 40 Recoil Reduction 2 Item Schematics ----------------- None Robot Schematics ------------------ None Fabricated ------------ Nothing Repaired ---------- Nothing Alien Tech Used ----------------- None Achievements -------------- None Challenges ------------ None Game ------ Seed ThermoelectricBlastSystem Manual? 0 Play Time 00:17:58 Cumulative 97.3 hours Start 2025.05.25 @ 22:42:40 End 2025.05.25 @ 23:02:29 Sessions 1 Manual Loads 0 Difficulty Rogue Special Mode None Game No. 193 Rogue 193 Adventurer 0 Explorer 0 Win Type - Total 0 Types 0/0/0/0/0/0/0/0/0/0 Lore% 25 Gallery% 41 Achievement% 34 Wizard Run 0 Options --------- Layout 1 ASCII 0 Keyboard 1 Movement Arrows Keybinds 0 Fullscreen 2 Font 24/Smallcaps Map View 50x35 Zoom Use 0% Tactical HUD 1 Map Filters NONE Filters NONE Steam 1 RUN: bae3615a-75a2-4081-b84f-4416c32b810a